[Event "Berliner Meisterschaft 2023"]
[Site "Berlin"]
[Date "2023.04.12"]
[Round "5.7"]
[White "Richter, Michael"]
[Black "Kather, Yannick"]
[Result "1-0"]
[TimeControl "90 minutes / 40 moves + 30 minutes + 30 seconds"]
[WhiteTitle "GM"]
[WhiteFideId "4618920"]
[BlackFideId "12912085"]
[WhiteElo "2465"]
[BlackElo "2137"]

1. d4 {[%clk 01:30:55]} {[%emt 00:00:03]} Nf6 {[%clk 01:30:53]} {[%emt
00:00:08]} 2. Nf3 {[%clk 01:31:14]} {[%emt 00:00:11]} g6 {[%clk 01:31:14]}
{[%emt 00:00:10]} 3. Nc3 {[%clk 01:31:37]} {[%emt 00:00:07]} Bg7 {[%clk
01:30:04]} {[%emt 00:01:40]} 4. e4 {[%clk 01:31:50]} {[%emt 00:00:17]} d5
{[%clk 01:30:25]} {[%emt 00:00:10]} 5. e5 {[%clk 01:31:04]} {[%emt 00:01:15]}
Ne4 {[%clk 01:30:46]} {[%emt 00:00:09]} 6. Bd3 {[%clk 01:30:55]} {[%emt
00:00:38]} c5 {[%clk 01:27:49]} {[%emt 00:03:28]} 7. Nxe4 {[%clk 01:26:14]}
{[%emt 00:05:11]} dxe4 {[%clk 01:27:48]} {[%emt 00:00:31]} 8. Bxe4 {[%clk
01:26:34]} {[%emt 00:00:09]} cxd4 {[%clk 01:27:36]} {[%emt 00:00:42]} 9. Bf4
{[%clk 01:23:10]} {[%emt 00:03:53]} Qa5+ {[%clk 01:04:55]} {[%emt 00:23:12]} 10.
Qd2 {[%clk 01:20:57]} {[%emt 00:02:43]} Qxd2+ {[%clk 01:04:53]} {[%emt
00:00:32]} 11. Kxd2 {[%clk 01:21:17]} {[%emt 00:00:10]} f6 {[%clk 01:04:38]}
{[%emt 00:00:45]} 12. Rhe1 {[%clk 01:13:53]} {[%emt 00:07:53]} O-O {[%clk
00:52:01]} {[%emt 00:13:07]} 13. Bd5+ {[%clk 01:04:55]} {[%emt 00:09:28]} Kh8
{[%clk 00:49:49]} {[%emt 00:02:42]} 14. Rad1 {[%clk 00:50:30]} {[%emt
00:14:55]} Nc6 {[%clk 00:31:48]} {[%emt 00:18:32]} 15. Bxc6 {[%clk 00:29:02]}
{[%emt 00:21:57]} bxc6 {[%clk 00:29:34]} {[%emt 00:02:44]} 16. Nxd4 {[%clk
00:28:23]} {[%emt 00:01:09]} fxe5 {[%clk 00:27:35]} {[%emt 00:02:30]} 17. Bxe5
{[%clk 00:28:38]} {[%emt 00:00:15]} Rxf2+ {[%clk 00:27:46]} {[%emt 00:00:20]}
18. Kc3 {[%clk 00:24:10]} {[%emt 00:04:58]} Bxe5 {[%clk 00:23:18]} {[%emt
00:04:58]} 19. Rxe5 {[%clk 00:24:31]} {[%emt 00:00:10]} Rxg2 {[%clk 00:23:31]}
{[%emt 00:00:17]} 20. Rd2 {[%clk 00:19:50]} {[%emt 00:05:10]} Rxd2 {[%clk
00:16:32]} {[%emt 00:07:29]} 21. Kxd2 {[%clk 00:20:15]} {[%emt 00:00:06]} e6
{[%clk 00:16:45]} {[%emt 00:00:17]} 22. Nxe6 {[%clk 00:20:12]} {[%emt
00:00:32]} Bxe6 {[%clk 00:16:46]} {[%emt 00:00:30]} 23. Rxe6 {[%clk 00:20:37]}
{[%emt 00:00:05]} Rf8 {[%clk 00:17:09]} {[%emt 00:00:07]} 24. Ke3 {[%clk
00:17:51]} {[%emt 00:03:16]} c5 {[%clk 00:15:32]} {[%emt 00:02:08]} 25. c4
{[%clk 00:15:15]} {[%emt 00:03:05]} Kg7 {[%clk 00:08:21]} {[%emt 00:07:40]} 26.
Rc6 {[%clk 00:14:52]} {[%emt 00:00:53]} Rf5 {[%clk 00:08:32]} {[%emt 00:00:19]}
27. Rc7+ {[%clk 00:13:54]} {[%emt 00:01:28]} Kh6 {[%clk 00:08:50]} {[%emt
00:00:12]} 28. Rxa7 {[%clk 00:10:13]} {[%emt 00:04:12]} Rh5 {[%clk 00:09:10]}
{[%emt 00:00:10]} 29. Rb7 {[%clk 00:09:31]} {[%emt 00:01:12]} Rxh2 {[%clk
00:07:51]} {[%emt 00:01:48]} 30. a4 {[%clk 00:09:54]} {[%emt 00:00:08]} Rh1
{[%clk 00:07:41]} {[%emt 00:00:39]} 31. a5 {[%clk 00:09:42]} {[%emt 00:00:43]}
Ra1 {[%clk 00:06:40]} {[%emt 00:01:31]} 32. Rb5 {[%clk 00:09:43]} {[%emt
00:00:29]} Kg5 {[%clk 00:06:34]} {[%emt 00:00:35]} 33. b4 {[%clk 00:08:04]}
{[%emt 00:02:10]} Kf5 {[%clk 00:05:08]} {[%emt 00:01:57]} 34. Rxc5+ {[%clk
00:08:24]} {[%emt 00:00:10]} Kg4 {[%clk 00:05:31]} {[%emt 00:00:07]} 35. Rd5
{[%clk 00:04:07]} {[%emt 00:04:47]} h5 {[%clk 00:04:11]} {[%emt 00:01:51]} 36.
c5 {[%clk 00:04:13]} {[%emt 00:00:24]} Rc1 {[%clk 00:02:07]} {[%emt 00:02:34]}
37. Kd2 {[%clk 00:01:58]} {[%emt 00:02:45]} Rc4 {[%clk 00:01:05]} {[%emt
00:01:32]} 38. Kd3 {[%clk 00:02:23]} {[%emt 00:00:05]} Rc1 {[%clk 00:01:30]}
{[%emt 00:00:05]} 39. Rd4+ {[%clk 00:01:58]} {[%emt 00:00:55]} Kg3 {[%clk
00:01:54]} {[%emt 00:00:06]} 40. Rc4 {[%clk 00:01:26]} {[%emt 00:01:01]} Rd1+
{[%clk 00:02:00]} {[%emt 00:00:25]} 41. Ke2 {[%clk 00:00:51]} {[%emt 00:01:05]}
Rd8 {[%clk 00:01:54]} {[%emt 00:00:36]} 42. c6 {[%clk 00:28:56]} {[%emt
00:02:25]} h4 {[%clk 00:30:49]} {[%emt 00:01:35]} 43. c7 {[%clk 00:28:13]}
{[%emt 00:01:13]} Rc8 {[%clk 00:31:12]} {[%emt 00:00:07]} 44. b5 {[%clk
00:27:19]} {[%emt 00:01:24]} h3 {[%clk 00:31:08]} {[%emt 00:00:33]} 45. b6
{[%clk 00:27:38]} {[%emt 00:00:12]} h2 {[%clk 00:30:07]} {[%emt 00:01:31]} 46.
Rc1 {[%clk 00:27:51]} {[%emt 00:00:16]} Kg2 {[%clk 00:30:16]} {[%emt 00:00:21]}
47. Kd3 {[%clk 00:27:17]} {[%emt 00:01:05]} Rf8 {[%clk 00:29:24]} {[%emt
00:01:22]} 48. b7 {[%clk 00:26:07]} {[%emt 00:01:39]} 1-0

[Event "Berliner Meisterschaft 2023"]
[Site "Berlin"]
[Date "2023.04.12"]
[Round "5.8"]
[White "Noetzel, Felix"]
[Black "Foerster, Jonas"]
[Result "1-0"]
[TimeControl "90 minutes / 40 moves + 30 minutes + 30 seconds"]
[WhiteFideId "24637416"]
[BlackFideId "4640098"]
[WhiteElo "2136"]
[BlackElo "2295"]

1. e4 {[%clk 01:30:56]} {[%emt 00:00:03]} c6 {[%clk 01:30:40]} {[%emt
00:00:21]} 2. d4 {[%clk 01:31:19]} {[%emt 00:00:07]} d5 {[%clk 01:30:41]}
{[%emt 00:00:29]} 3. Nc3 {[%clk 01:31:42]} {[%emt 00:00:06]} dxe4 {[%clk
01:30:34]} {[%emt 00:00:38]} 4. Nxe4 {[%clk 01:32:04]} {[%emt 00:00:07]} Nf6
{[%clk 01:30:33]} {[%emt 00:00:32]} 5. Nxf6+ {[%clk 01:32:00]} {[%emt
00:00:34]} exf6 {[%clk 01:30:46]} {[%emt 00:00:17]} 6. c3 {[%emt 00:00:55]} Bd6
{[%clk 01:30:36]} 7. Bd3 {[%clk 01:32:15]} {[%emt 00:00:30]} O-O {[%clk
01:30:55]} {[%emt 00:00:11]} 8. Ne2 {[%clk 01:31:35]} {[%emt 00:01:10]} Re8
{[%clk 01:25:10]} {[%emt 00:06:16]} 9. O-O {[%clk 01:31:45]} {[%emt 00:00:19]}
Qc7 {[%clk 01:23:31]} {[%emt 00:02:09]} 10. Ng3 {[%clk 01:31:35]} {[%emt
00:00:40]} Nd7 {[%clk 01:16:04]} {[%emt 00:07:58]} 11. Nf5 {[%clk 01:20:33]}
{[%emt 00:11:32]} Nf8 {[%clk 01:14:11]} {[%emt 00:02:23]} 12. Nxd6 {[%clk
01:17:42]} {[%emt 00:03:21]} Qxd6 {[%clk 01:14:38]} {[%emt 00:00:03]} 13. Qf3
{[%clk 01:06:16]} {[%emt 00:11:56]} Be6 {[%clk 01:10:14]} {[%emt 00:04:55]} 14.
Be3 {[%clk 00:52:21]} {[%emt 00:14:24]} Bd5 {[%clk 00:46:09]} {[%emt 00:24:35]}
15. Qg3 {[%clk 00:51:17]} {[%emt 00:01:33]} Qxg3 {[%clk 00:42:47]} {[%emt
00:03:52]} 16. hxg3 {[%clk 00:51:46]} {[%emt 00:00:01]} Be4 {[%clk 00:41:37]}
{[%emt 00:01:41]} 17. Be2 {[%clk 00:49:26]} {[%emt 00:02:49]} Rad8 {[%clk
00:35:10]} {[%emt 00:06:57]} 18. Rfe1 {[%clk 00:46:35]} {[%emt 00:03:20]} Nd7
{[%clk 00:25:42]} {[%emt 00:09:58]} 19. f3 {[%clk 00:40:50]} {[%emt 00:06:14]}
Bd5 {[%clk 00:24:38]} {[%emt 00:01:35]} 20. Bf2 {[%clk 00:39:07]} {[%emt
00:02:13]} b5 {[%clk 00:21:15]} {[%emt 00:03:54]} 21. b3 {[%clk 00:37:18]}
{[%emt 00:02:19]} Nb6 {[%clk 00:20:27]} {[%emt 00:01:18]} 22. Bd3 {[%clk
00:36:50]} {[%emt 00:00:57]} h5 {[%clk 00:14:22]} {[%emt 00:06:36]} 23. Rxe8+
{[%clk 00:26:29]} {[%emt 00:10:51]} Rxe8 {[%clk 00:14:50]} {[%emt 00:00:01]} 24.
Rc1 {[%clk 00:26:51]} {[%emt 00:00:08]} Be6 {[%clk 00:13:27]} {[%emt 00:01:54]}
25. c4 {[%clk 00:22:43]} {[%emt 00:04:38]} bxc4 {[%clk 00:13:53]} {[%emt
00:00:05]} 26. bxc4 {[%clk 00:23:02]} {[%emt 00:00:10]} Kf8 {[%clk 00:10:08]}
{[%emt 00:04:15]} 27. Be1 {[%clk 00:06:24]} {[%emt 00:17:09]} Rd8 {[%clk
00:09:54]} {[%emt 00:00:44]} 28. Bf2 {[%clk 00:03:17]} {[%emt 00:03:37]} Ke8
{[%clk 00:08:24]} {[%emt 00:02:00]} 29. a3 {[%clk 00:03:05]} {[%emt 00:00:43]}
Kd7 {[%clk 00:03:36]} {[%emt 00:05:18]} 30. Be3 {[%clk 00:03:14]} {[%emt
00:00:21]} Ke8 {[%emt 00:01:19]} 31. Kf2 {[%clk 00:03:19]} {[%emt 00:00:23]} f5
{[%clk 00:02:42]} {[%emt 00:00:37]} 32. Ke1 {[%clk 00:02:06]} {[%emt 00:01:43]}
Kd7 {[%clk 00:01:31]} {[%emt 00:01:42]} 33. Kd2 {[%clk 00:02:29]} {[%emt
00:00:07]} Rh8 {[%clk 00:01:02]} {[%emt 00:00:59]} 34. a4 {[%clk 00:02:13]}
{[%emt 00:00:46]} a5 {[%clk 00:00:34]} {[%emt 00:00:58]} 35. d5 {[%clk
00:02:16]} {[%emt 00:00:26]} 1-0

[Event "Berliner Meisterschaft 2023"]
[Site "Berlin"]
[Date "2023.04.13"]
[Round "6.1"]
[White "Baskin, Robert"]
[Black "Glek, Igor"]
[Result "1/2-1/2"]
[TimeControl "90 minutes / 40 moves + 30 minutes + 30 seconds"]
[WhiteTitle "IM"]
[BlackTitle "GM"]
[WhiteFideId "24662402"]
[BlackFideId "4100484"]
[WhiteElo "2442"]
[BlackElo "2443"]

1. e4 {[%clk 01:22:57]} {[%emt 00:08:03]} e6 {[%clk 01:24:29]} {[%emt
00:06:31]} 2. d4 {[%clk 01:23:12]} {[%emt 00:00:14]} d5 {[%clk 01:24:38]}
{[%emt 00:00:23]} 3. Nc3 {[%clk 01:23:35]} {[%emt 00:00:07]} Nf6 {[%clk
01:24:45]} {[%emt 00:00:23]} 4. Bg5 {[%clk 01:23:52]} {[%emt 00:00:12]} dxe4
{[%clk 01:25:05]} {[%emt 00:00:10]} 5. Nxe4 {[%clk 01:24:16]} {[%emt 00:00:06]}
Be7 {[%clk 01:25:32]} {[%emt 00:00:04]} 6. Bxf6 {[%clk 01:24:25]} {[%emt
00:00:21]} Bxf6 {[%clk 01:24:50]} {[%emt 00:01:11]} 7. Nf3 {[%clk 01:24:38]}
{[%emt 00:00:16]} Bd7 {[%clk 01:24:11]} {[%emt 00:01:10]} 8. c3 {[%clk
01:15:46]} {[%emt 00:09:23]} Bc6 {[%clk 01:24:09]} {[%emt 00:00:33]} 9. Nxf6+
{[%clk 01:13:37]} {[%emt 00:02:38]} gxf6 {[%clk 01:11:25]} {[%emt 00:13:13]} 10.
Bc4 {[%clk 01:07:13]} {[%emt 00:06:53]} Bd5 {[%clk 01:07:22]} {[%emt 00:04:33]}
11. Qe2 {[%clk 01:06:36]} {[%emt 00:01:08]} c6 {[%clk 01:04:57]} {[%emt
00:02:55]} 12. a4 {[%clk 01:03:42]} {[%emt 00:03:24]} Bxc4 {[%clk 00:59:31]}
{[%emt 00:05:57]} 13. Qxc4 {[%clk 01:04:06]} {[%emt 00:00:06]} Qd5 {[%clk
00:59:58]} {[%emt 00:00:03]} 14. Qe2 {[%clk 00:54:28]} {[%emt 00:10:08]} O-O
{[%clk 00:51:39]} {[%emt 00:08:49]} 15. O-O {[%clk 00:48:11]} {[%emt 00:06:47]}
Nd7 {[%clk 00:50:17]} {[%emt 00:01:52]} 16. Rfe1 {[%clk 00:40:37]} {[%emt
00:08:03]} Rad8 {[%clk 00:47:28]} {[%emt 00:03:19]} 17. Qc2 {[%clk 00:38:13]}
{[%emt 00:02:54]} Kh8 {[%clk 00:43:21]} {[%emt 00:04:37]} 18. Qe4 {[%clk
00:32:37]} {[%emt 00:06:07]} Rg8 {[%clk 00:39:39]} {[%emt 00:04:11]} 19. Qxd5
{[%clk 00:32:07]} {[%emt 00:01:01]} cxd5 {[%clk 00:40:03]} {[%emt 00:00:06]} 20.
g3 {[%clk 00:32:10]} {[%emt 00:00:26]} Rc8 {[%clk 00:39:56]} {[%emt 00:00:37]}
1/2-1/2

[Event "Berliner Meisterschaft 2023"]
[Site "Berlin"]
[Date "2023.04.13"]
[Round "6.2"]
[White "Strache, Micheal"]
[Black "Schmidek, Emil"]
[Result "1/2-1/2"]
[TimeControl "90 minutes / 40 moves + 30 minutes + 30 seconds"]
[BlackTitle "IM"]
[WhiteFideId "4693183"]
[BlackFideId "12908150"]
[WhiteElo "2287"]
[BlackElo "2433"]

1. e4 {[%clk 01:25:40]} {[%emt 00:05:14]} e5 {[%clk 01:30:57]} {[%emt
00:00:08]} 2. Nf3 {[%clk 01:25:51]} {[%emt 00:00:19]} Nc6 {[%clk 01:31:23]}
{[%emt 00:00:05]} 3. Nc3 {[%clk 01:26:15]} {[%emt 00:00:05]} Nf6 {[%clk
01:31:46]} {[%emt 00:00:07]} 4. g3 {[%clk 01:26:35]} {[%emt 00:00:10]} d5
{[%clk 01:24:56]} {[%emt 00:07:20]} 5. exd5 {[%clk 01:26:58]} {[%emt 00:00:07]}
Nxd5 {[%clk 01:25:18]} {[%emt 00:00:08]} 6. Bg2 {[%clk 01:27:17]} {[%emt
00:00:11]} Nxc3 {[%clk 01:21:18]} {[%emt 00:04:31]} 7. bxc3 {[%clk 01:27:31]}
{[%emt 00:00:15]} Bc5 {[%clk 01:19:23]} {[%emt 00:02:24]} 8. O-O {[%clk
01:27:08]} {[%emt 00:00:53]} O-O {[%clk 01:19:44]} {[%emt 00:00:10]} 9. d3
{[%clk 01:24:46]} {[%emt 00:02:52]} Bf5 {[%clk 00:47:48]} {[%emt 00:32:26]} 10.
Be3 {[%clk 01:20:15]} {[%emt 00:05:02]} Bb6 {[%clk 00:45:24]} {[%emt 00:02:54]}
11. Nd2 {[%clk 01:18:35]} {[%emt 00:02:10]} Qd7 {[%clk 00:42:11]} {[%emt
00:03:43]} 12. Nc4 {[%clk 01:17:53]} {[%emt 00:01:12]} Bh3 {[%clk 00:40:44]}
{[%emt 00:01:57]} 13. a4 {[%clk 01:12:21]} {[%emt 00:06:03]} Bxg2 {[%clk
00:39:06]} {[%emt 00:02:07]} 14. Kxg2 {[%clk 01:12:45]} {[%emt 00:00:05]} Qe6
{[%clk 00:37:52]} {[%emt 00:01:44]} 15. a5 {[%clk 01:07:59]} {[%emt 00:05:16]}
Bxe3 {[%clk 00:38:05]} {[%emt 00:00:17]} 16. Nxe3 {[%clk 01:02:41]} {[%emt
00:05:48]} f5 {[%clk 00:36:53]} {[%emt 00:01:42]} 17. f3 {[%clk 00:53:17]}
{[%emt 00:09:55]} Rae8 {[%clk 00:22:40]} {[%emt 00:14:43]} 18. Qe2 {[%clk
00:37:19]} {[%emt 00:16:28]} Qd6 {[%clk 00:11:48]} {[%emt 00:11:22]} 19. Qf2
{[%clk 00:32:13]} {[%emt 00:05:36]} e4 {[%clk 00:09:16]} {[%emt 00:03:02]} 20.
f4 {[%clk 00:30:50]} {[%emt 00:01:53]} exd3 {[%clk 00:09:23]} {[%emt 00:00:23]}
21. Rfd1 {[%clk 00:30:56]} {[%emt 00:00:23]} Qc5 {[%clk 00:08:35]} {[%emt
00:01:19]} 22. Rxd3 {[%clk 00:30:38]} {[%emt 00:00:48]} Rd8 {[%clk 00:07:51]}
{[%emt 00:01:15]} 23. c4 {[%clk 00:29:51]} {[%emt 00:01:17]} Nxa5 {[%clk
00:04:20]} {[%emt 00:04:01]} 24. Nd5 {[%clk 00:29:20]} {[%emt 00:01:01]} Qxf2+
{[%clk 00:03:27]} {[%emt 00:01:24]} 25. Kxf2 {[%clk 00:29:30]} {[%emt
00:00:19]} b6 {[%clk 00:01:22]} {[%emt 00:02:35]} 26. c5 {[%clk 00:28:46]}
{[%emt 00:01:15]} 1/2-1/2

[Event "Berliner Meisterschaft 2023"]
[Site "Berlin"]
[Date "2023.04.13"]
[Round "6.3"]
[White "Lagunow, Raphael"]
[Black "Bruedigam, Martin"]
[Result "1/2-1/2"]
[TimeControl "90 minutes / 40 moves + 30 minutes + 30 seconds"]
[WhiteTitle "IM"]
[BlackTitle "IM"]
[WhiteFideId "246552644"]
[BlackFideId "24608033"]
[WhiteElo "2410"]
[BlackElo "2378"]

1. Nf3 {[%clk 01:21:59]} {[%emt 00:08:54]} Nf6 {[%clk 01:29:29]} {[%emt
00:01:37]} 2. c4 {[%clk 01:22:19]} {[%emt 00:00:11]} e6 {[%clk 01:29:50]}
{[%emt 00:00:09]} 3. g3 {[%clk 01:22:43]} {[%emt 00:00:06]} d5 {[%clk
01:29:37]} {[%emt 00:00:43]} 4. Bg2 {[%clk 01:22:43]} {[%emt 00:00:30]} Be7
{[%clk 01:29:59]} {[%emt 00:00:08]} 5. O-O {[%clk 01:22:54]} {[%emt 00:00:19]}
O-O {[%clk 01:30:16]} {[%emt 00:00:13]} 6. d4 {[%clk 01:22:30]} {[%emt
00:00:53]} c6 {[%clk 01:30:40]} {[%emt 00:00:06]} 7. Nc3 {[%clk 01:22:15]}
{[%emt 00:00:46]} Nbd7 {[%clk 01:30:36]} {[%emt 00:00:33]} 8. Qd3 {[%clk
01:18:08]} {[%emt 00:04:37]} b6 {[%clk 01:30:19]} {[%emt 00:00:47]} 9. e4
{[%clk 01:10:16]} {[%emt 00:08:22]} Ba6 {[%clk 01:25:12]} {[%emt 00:05:37]} 10.
b3 {[%clk 01:09:59]} {[%emt 00:00:47]} Rc8 {[%clk 01:21:20]} {[%emt 00:04:23]}
11. Rd1 {[%clk 01:01:26]} {[%emt 00:09:02]} c5 {[%clk 01:10:34]} {[%emt
00:11:15]} 12. e5 {[%clk 00:50:53]} {[%emt 00:11:04]} dxc4 {[%clk 01:00:30]}
{[%emt 00:10:34]} 13. bxc4 {[%clk 00:50:31]} {[%emt 00:00:52]} Nd5 {[%clk
00:54:59]} {[%emt 00:06:01]} 14. Nb5 {[%clk 00:25:15]} {[%emt 00:25:46]} Bxb5
{[%clk 00:45:21]} {[%emt 00:10:08]} 15. cxb5 {[%clk 00:25:39]} {[%emt
00:00:05]} c4 {[%clk 00:45:40]} {[%emt 00:00:11]} 16. Qc2 {[%clk 00:25:31]}
{[%emt 00:00:38]} a6 {[%clk 00:44:28]} {[%emt 00:01:42]} 17. a4 {[%clk
00:24:56]} {[%emt 00:01:05]} Nb4 {[%clk 00:40:52]} {[%emt 00:04:06]} 18. Qe2
{[%clk 00:21:39]} {[%emt 00:03:47]} Nd5 {[%clk 00:37:24]} {[%emt 00:03:58]} 19.
Bd2 {[%clk 00:18:06]} {[%emt 00:04:03]} axb5 {[%clk 00:29:29]} {[%emt
00:08:26]} 20. axb5 {[%clk 00:18:31]} {[%emt 00:00:05]} c3 {[%clk 00:28:47]}
{[%emt 00:01:12]} 21. Be3 {[%clk 00:16:29]} {[%emt 00:02:31]} Qc7 {[%clk
00:25:32]} {[%emt 00:03:45]} 22. Ne1 {[%clk 00:14:41]} {[%emt 00:02:18]} Rfd8
{[%clk 00:25:34]} {[%emt 00:00:28]} 23. Bxd5 {[%clk 00:11:58]} {[%emt
00:03:13]} exd5 {[%clk 00:25:58]} {[%emt 00:00:05]} 24. Nc2 {[%clk 00:12:23]}
{[%emt 00:00:05]} f6 {[%clk 00:25:10]} {[%emt 00:01:18]} 25. e6 {[%clk
00:08:10]} {[%emt 00:04:44]} Nf8 {[%clk 00:24:50]} {[%emt 00:00:50]} 26. Bf4
{[%clk 00:08:11]} {[%emt 00:00:29]} Qb7 {[%emt 00:06:27]} 27. Ra6 {[%clk
00:07:39]} g5 {[%clk 00:19:42]} {[%emt 00:00:42]} 28. Rda1 {[%clk 00:07:05]}
{[%emt 00:01:05]} Ra8 {[%clk 00:20:10]} {[%emt 00:00:02]} 29. Bc1 {[%clk
00:06:39]} {[%emt 00:00:55]} Rxa6 {[%clk 00:20:13]} {[%emt 00:00:27]} 30. Rxa6
{[%clk 00:03:25]} {[%emt 00:03:45]} Rd6 {[%clk 00:20:22]} {[%emt 00:00:20]} 31.
Ba3 {[%clk 00:02:32]} {[%emt 00:01:23]} Rxe6 {[%clk 00:20:42]} {[%emt
00:00:09]} 32. Qd3 {[%clk 00:02:58]} {[%emt 00:00:04]} Ng6 {[%clk 00:08:38]}
{[%emt 00:12:34]} 33. Qxc3 {[%clk 00:02:22]} {[%emt 00:01:06]} Qd7 {[%clk
00:07:37]} {[%emt 00:01:31]} 34. Ra8+ {[%clk 00:01:53]} {[%emt 00:00:59]} Kf7
{[%clk 00:07:45]} {[%emt 00:00:21]} 35. Qd3 {[%clk 00:01:33]} {[%emt 00:00:50]}
Qb7 {[%clk 00:06:25]} {[%emt 00:01:50]} 36. Ra6 {[%clk 00:01:51]} {[%emt
00:00:12]} Bd8 {[%clk 00:03:45]} {[%emt 00:03:10]} 37. Ne3 {[%clk 00:01:53]}
{[%emt 00:00:27]} Qd7 {[%clk 00:03:59]} {[%emt 00:00:15]} 38. Bb4 {[%emt
00:02:16]} Re4 {[%clk 00:04:00]} 39. f3 {[%clk 00:00:50]} {[%emt 00:00:17]} Re8
{[%clk 00:02:23]} {[%emt 00:02:06]} 40. Nf5 {[%clk 00:00:38]} {[%emt 00:00:42]}
Kg8 {[%clk 00:01:51]} {[%emt 00:01:02]} 41. Kg2 {[%clk 00:18:00]} {[%emt
00:13:07]} Nh8 {[%clk 00:30:14]} {[%emt 00:02:08]} 42. Nh6+ {[%clk 00:12:56]}
{[%emt 00:05:34]} Kg7 {[%clk 00:30:26]} {[%emt 00:00:18]} 43. Nf5+ {[%clk
00:13:10]} {[%emt 00:00:15]} Kg8 {[%clk 00:30:50]} {[%emt 00:00:06]} 44. h4
{[%clk 00:08:14]} {[%emt 00:05:27]} gxh4 {[%clk 00:28:48]} {[%emt 00:02:32]} 45.
Nxh4 {[%clk 00:08:21]} {[%emt 00:00:22]} Nf7 {[%clk 00:28:19]} {[%emt
00:00:59]} 46. Nf5 {[%clk 00:08:14]} {[%emt 00:00:38]} Kh8 {[%clk 00:28:16]}
{[%emt 00:00:33]} 47. Ra1 {[%clk 00:07:28]} {[%emt 00:01:16]} Ng5 {[%clk
00:27:29]} {[%emt 00:01:17]} 48. Bd2 {[%clk 00:05:22]} {[%emt 00:02:37]} Ne6
{[%clk 00:27:00]} {[%emt 00:00:58]} 49. Rh1 {[%clk 00:04:45]} {[%emt 00:01:07]}
Rg8 {[%clk 00:26:29]} {[%emt 00:01:00]} 50. Kf2 {[%clk 00:03:33]} {[%emt
00:01:42]} Bc7 {[%clk 00:26:27]} {[%emt 00:00:32]} 51. Rh6 {[%clk 00:02:57]}
{[%emt 00:01:07]} Bd8 {[%clk 00:22:09]} {[%emt 00:04:47]} 52. Nh4 {[%clk
00:01:47]} {[%emt 00:01:40]} Rg7 {[%clk 00:22:21]} {[%emt 00:00:19]} 53. Nf5
{[%clk 00:02:14]} {[%emt 00:00:03]} Rg8 {[%clk 00:22:47]} {[%emt 00:00:04]} 54.
Nh4 {[%clk 00:02:39]} {[%emt 00:00:05]} Rg7 {[%clk 00:23:14]} {[%emt 00:00:03]}
55. Rh5 {[%clk 00:02:33]} {[%emt 00:00:36]} Bc7 {[%clk 00:22:13]} {[%emt
00:01:31]} 56. f4 {[%clk 00:01:45]} {[%emt 00:01:18]} Bd8 {[%clk 00:20:27]}
{[%emt 00:02:16]} 57. Nf5 {[%clk 00:02:02]} {[%emt 00:00:13]} Rg8 {[%clk
00:20:50]} {[%emt 00:00:07]} 58. Nd6 {[%clk 00:01:19]} {[%emt 00:01:14]} Bc7
{[%clk 00:17:53]} {[%emt 00:03:27]} 59. Nf5 {[%clk 00:01:45]} {[%emt 00:00:04]}
Bd8 {[%clk 00:17:58]} {[%emt 00:00:24]} 60. Nd6 {[%clk 00:01:01]} {[%emt
00:01:13]} Bc7 {[%clk 00:18:27]} {[%emt 00:00:01]} 61. Nf5 {[%clk 00:00:11]}
{[%emt 00:00:48]} 1/2-1/2